[Event "Guimaraes Open 2019"]
[Site "Guimaraes"]
[Date "2019.08.29"]
[Round "2.25"]
[White "Garcia Romero, Benjamin Abel"]
[Black "Silva, Tiago Alexandre Pinh"]
[Result "1-0"]
[ECO "E06"]
[WhiteElo "2164"]
[BlackElo "1833"]
[Annotator "NA"]
[PlyCount "57"]
[EventDate "2019.08.28"]
[EventType "swiss"]
[EventCountry "POR"]
[SourceTitle "playchess.com"]
[Source "ChessBase"]
[SourceQuality "1"]
[TimeControl "5400+30"]

1. d4 {[%emt 0:00:00]} d5 {[%emt 0:00:00]} 2. c4 {[%emt 0:00:00]} e6 {[%emt 0:00:00]} 3. Nf3 {[%emt 0:00:11]} Nf6 {[%emt 0:00:00]} 4. g3 {[%emt 0:00:09]} Be7 {[%emt 0:00:04]} 5. Bg2 {[%emt 0:00:09]} O-O {[%emt 0:00:15]} 6. O-O {[%emt 0:00:07]} dxc4 {[%emt 0:00:55]} 7. Qc2 {[%emt 0:00:21]} a6 {[%emt 0:00:07]} 8. Qxc4 {[%emt 0:00:16]} b5 {[%emt 0:01:18]} 9. Qc2 {[%emt 0:00:14]} Bb7 {[%emt 0:00:29]} 10. Bd2 {[%emt 0:00:10]} Be4 {[%emt 0:12:02]} 11. Qc1 {[%emt 0:00:09]} b4 {[%emt 0:07:36]} 12. a3 {[%emt 0:05:57]} Nc6 {[%emt 0:03:33]} 13. Be3 {[%emt 0:07:20]} Na5 {[%emt 0:24:23]} 14. Nbd2 {[%emt 0:01:07]} Bd5 {[%emt 0:03:11]} 15. Qc2 {[%emt 0:10:39]} Nb7 {[%emt 0:07:44]} 16. axb4 {[%emt 0:02:28]} Bxb4 {[%emt 0:02:21]} 17. Rfc1 {[%emt 0:02:17]} c6 {[%emt 0:06:57]} 18. Bg5 {[%emt 0:04:04]} Bxd2 {[%emt 0:02:09]} 19. Qxd2 {[%emt 0:02:33]} Nd6 {[%emt 0:04:15]} 20. Qd3 {[%emt 0:00:29]} Be4 {[%emt 0:03:00]} 21. Qd1 {[%emt 0:06:18]} h6 {[%emt 0:02:19]} 22. Bd2 {[%emt 0:01:42]} Nb5 {[%emt 0:02:28]} 23. e3 {[%emt 0:00:26]} g5 {[%emt 0:03:52]} 24. Ba5 {[%emt 0:00:58]} Qd6 {[%emt 0:02:05]} 25. Bf1 {[%emt 0:03:46]} Nd7 {[%emt 0:02:02]} 26. Nd2 {[%emt 0:00:25]} Bd5 {[%emt 0:00:36]} 27. Ra4 {[%emt 0:02:55]} c5 {[%emt 0:01:56]} 28. dxc5 {[%emt 0:03:16]} Qc6 {[%emt 0:00:12]} 29. e4 {[%emt 0:00:16]} 1-0

[Event "Guimaraes Open 2019"]
[Site "Guimaraes"]
[Date "2019.08.29"]
[Round "2.26"]
[White "Donadio Falcon, Pablo"]
[Black "Garcia Gimenez, Santiago"]
[Result "1/2-1/2"]
[ECO "C47"]
[WhiteElo "1925"]
[BlackElo "2161"]
[Annotator "NA"]
[PlyCount "84"]
[EventDate "2019.08.28"]
[EventType "swiss"]
[EventCountry "POR"]
[SourceTitle "playchess.com"]
[Source "ChessBase"]
[SourceQuality "1"]
[TimeControl "5400+30"]

1. e4 {[%emt 0:00:00]} e5 {[%emt 0:00:00]} 2. Nf3 {[%emt 0:00:08]} Nc6 {[%emt 0:00:00]} 3. Nc3 {[%emt 0:00:18]} Nf6 {[%emt 0:00:00]} 4. d4 {[%emt 0:00:09]} exd4 {[%emt 0:00:06]} 5. Nxd4 {[%emt 0:00:08]} Bb4 {[%emt 0:00:05]} 6. Nxc6 {[%emt 0:01:13]} bxc6 {[%emt 0:00:07]} 7. Bd3 {[%emt 0:00:44]} d5 {[%emt 0:00:09]} 8. exd5 cxd5 {[%emt 0:00:10]} 9. O-O {[%emt 0:01:12]} O-O {[%emt 0:00:09]} 10. Bg5 {[%emt 0:00:35]} c6 {[%emt 0:00:11]} 11. Qf3 {[%emt 0:00:55]} Bd6 {[%emt 0:00:11]} 12. h3 Rb8 {[%emt 0:00:28]} 13. Rab1 {[%emt 0:10:29]} Be6 {[%emt 0:00:35]} 14. Ne2 {[%emt 0:08:06]} h6 {[%emt 0:00:23]} 15. Bf4 {[%emt 0:01:47]} c5 {[%emt 0:02:03]} 16. Bxd6 {[%emt 0:16:02]} Qxd6 17. c3 {[%emt 0:04:16]} Bd7 {[%emt 0:10:10]} 18. b3 {[%emt 0:04:59]} Bc6 {[%emt 0:00:45]} 19. Qf4 {[%emt 0:00:48]} Qxf4 {[%emt 0:10:17]} 20. Nxf4 {[%emt 0:00:13]} Ne4 {[%emt 0:00:30]} 21. Rbc1 {[%emt 0:13:52]} g5 {[%emt 0:01:10]} 22. Ne2 {[%emt 0:01:22]} a5 {[%emt 0:01:20]} 23. f3 {[%emt 0:02:06]} Nd6 {[%emt 0:00:30]} 24. Rb1 {[%emt 0:02:17]} Rfe8 {[%emt 0:00:39]} 25. Kf2 {[%emt 0:02:12]} f5 {[%emt 0:01:55]} 26. g3 {[%emt 0:02:44]} Rb7 {[%emt 0:01:17]} 27. Rfe1 {[%emt 0:09:51]} Kf7 {[%emt 0:02:19]} 28. Ng1 {[%emt 0:02:25]} Rxe1 {[%emt 0:02:27]} 29. Rxe1 {[%emt 0:00:58]} Kf6 {[%emt 0:00:28]} 30. Ne2 {[%emt 0:01:28]} a4 {[%emt 0:00:35]} 31. Rb1 {[%emt 0:00:55]} axb3 {[%emt 0:02:10]} 32. axb3 {[%emt 0:00:30]} Ra7 {[%emt 0:00:30]} 33. Rb2 {[%emt 0:01:35]} Nf7 {[%emt 0:01:47]} 34. b4 {[%emt 0:03:23]} Ne5 {[%emt 0:00:29]} 35. Bb1 {[%emt 0:06:09]} Nc4 {[%emt 0:01:22]} 36. Ra2 {[%emt 0:00:48]} Rxa2 {[%emt 0:00:48]} 37. Bxa2 {[%emt 0:00:01]} cxb4 {[%emt 0:00:28]} 38. Bxc4 {[%emt 0:02:24]} dxc4 {[%emt 0:00:01]} 39. cxb4 {[%emt 0:00:01]} Bb7 {[%emt 0:01:25]} 40. Ke3 {[%emt 0:00:16]} h5 {[%emt 0:03:26]} 41. Kf2 {[%emt 0:02:22]} f4 {[%emt 0:02:37]} 42. gxf4 {[%emt 0:00:30]} gxf4 {[%emt 0:00:30]} 1/2-1/2

[Event "Guimaraes Open 2019"]
[Site "Guimaraes"]
[Date "2019.08.29"]
[Round "2.27"]
[White "Bertomeu Ginestar, Antoni"]
[Black "Torrijos Garcia, Borja"]
[Result "1/2-1/2"]
[ECO "B92"]
[WhiteElo "1883"]
[BlackElo "2153"]
[Annotator "NA"]
[PlyCount "71"]
[EventDate "2019.08.28"]
[EventType "swiss"]
[EventCountry "POR"]
[SourceTitle "playchess.com"]
[Source "ChessBase"]
[SourceQuality "1"]
[TimeControl "5400+30"]

1. e4 {[%emt 0:00:00]} c5 {[%emt 0:00:00]} 2. Nf3 {[%emt 0:00:00]} d6 {[%emt 0:00:00]} 3. d4 {[%emt 0:00:00]} cxd4 {[%emt 0:00:00]} 4. Nxd4 {[%emt 0:00:00]} Nf6 {[%emt 0:00:05]} 5. Nc3 {[%emt 0:00:11]} a6 {[%emt 0:00:09]} 6. Be2 {[%emt 0:02:07]} e5 {[%emt 0:04:53]} 7. Nb3 {[%emt 0:02:35]} b5 {[%emt 0:03:06]} 8. Bg5 {[%emt 0:02:26]} Nbd7 {[%emt 0:03:10]} 9. Nd5 {[%emt 0:07:48]} Bb7 {[%emt 0:06:30]} 10. O-O {[%emt 0:14:53]} Bxd5 {[%emt 0:20:38]} 11. exd5 {[%emt 0:00:07]} Be7 {[%emt 0:00:08]} 12. Bxf6 {[%emt 0:08:16]} Bxf6 {[%emt 0:00:18]} 13. c3 {[%emt 0:01:07]} Qb6 {[%emt 0:03:17]} 14. Bg4 {[%emt 0:04:57]} Nc5 {[%emt 0:18:01]} 15. Nxc5 {[%emt 0:03:06]} Qxc5 {[%emt 0:02:25]} 16. Rc1 {[%emt 0:07:11]} a5 {[%emt 0:08:11]} 17. c4 {[%emt 0:04:26]} O-O {[%emt 0:02:34]} 18. cxb5 {[%emt 0:01:13]} Qxb5 {[%emt 0:00:04]} 19. b3 {[%emt 0:05:10]} Bg5 {[%emt 0:06:38]} 20. Rc6 {[%emt 0:03:14]} f5 {[%emt 0:01:37]} 21. Be2 {[%emt 0:00:40]} Qb4 {[%emt 0:00:20]} 22. Qc2 {[%emt 0:00:46]} e4 {[%emt 0:01:19]} 23. f3 {[%emt 0:09:38]} Be3+ {[%emt 0:01:10]} 24. Kh1 {[%emt 0:00:06]} Bc5 {[%emt 0:00:34]} 25. Rc7 {[%emt 0:11:09]} Qd4 {[%emt 0:01:40]} 26. Re7 {[%emt 0:04:03]} exf3 {[%emt 0:08:46]} 27. Bxf3 {[%emt 0:00:11]} a4 {[%emt 0:01:32]} 28. bxa4 {[%emt 0:01:21]} Rxa4 {[%emt 0:01:04]} 29. Qe2 {[%emt 0:00:14]} Raa8 {[%emt 0:01:57]} 30. Qe6+ {[%emt 0:01:08]} Kh8 {[%emt 0:00:01]} 31. Rf7 {[%emt 0:01:25]} Rxf7 {[%emt 0:02:38]} 32. Qxf7 {[%emt 0:00:04]} Qf6 {[%emt 0:01:25]} 33. Qb7 {[%emt 0:00:34]} Re8 {[%emt 0:00:42]} 34. Qd7 {[%emt 0:03:05]} Ra8 {[%emt 0:00:08]} 35. Qb7 {[%emt 0:00:04]} Re8 {[%emt 0:00:18]} 36. Qd7 {[%emt 0:00:06]} 1/2-1/2

[Event "Guimaraes Open 2019"]
[Site "Guimaraes"]
[Date "2019.08.29"]
[Round "2.28"]
[White "Prado Acebo, Ines"]
[Black "Raro Gualda, Javier"]
[Result "1-0"]
[ECO "A61"]
[WhiteElo "2142"]
[BlackElo "1824"]
[Annotator "NA"]
[PlyCount "93"]
[EventDate "2019.08.28"]
[EventType "swiss"]
[EventCountry "POR"]
[SourceTitle "playchess.com"]
[Source "ChessBase"]
[SourceQuality "1"]
[TimeControl "5400+30"]

1. d4 {[%emt 0:00:00]} Nf6 {[%emt 0:00:00]} 2. c4 {[%emt 0:00:00]} e6 {[%emt 0:00:02]} 3. Nc3 {[%emt 0:00:00]} c5 {[%emt 0:01:08]} 4. d5 {[%emt 0:00:15]} exd5 {[%emt 0:00:16]} 5. cxd5 {[%emt 0:00:10]} d6 {[%emt 0:00:05]} 6. Nf3 {[%emt 0:01:00]} g6 {[%emt 0:00:06]} 7. h3 {[%emt 0:01:16]} Bg7 {[%emt 0:00:20]} 8. Bf4 {[%emt 0:00:51]} a6 {[%emt 0:02:25]} 9. a4 {[%emt 0:01:33]} O-O {[%emt 0:00:06]} 10. e3 {[%emt 0:03:36]} Qe7 {[%emt 0:02:09]} 11. Bd3 {[%emt 0:06:51]} Nbd7 {[%emt 0:01:44]} 12. O-O {[%emt 0:01:46]} Nh5 {[%emt 0:05:02]} 13. Bh2 {[%emt 0:03:16]} Ne5 {[%emt 0:05:07]} 14. Be2 {[%emt 0:00:19]} Nxf3+ {[%emt 0:05:56]} 15. Bxf3 {[%emt 0:00:05]} Nf6 {[%emt 0:07:54]} 16. a5 {[%emt 0:05:58]} Bd7 {[%emt 0:11:04]} 17. Qb3 {[%emt 0:04:00]} Rab8 {[%emt 0:07:23]} 18. Rfe1 {[%emt 0:07:15]} Rfd8 {[%emt 0:12:13]} 19. Kh1 {[%emt 0:05:41]} Ne8 {[%emt 0:08:12]} 20. Be2 {[%emt 0:01:25]} f5 {[%emt 0:07:37]} 21. Bd3 {[%emt 0:02:39]} Nf6 {[%emt 0:04:56]} 22. f3 {[%emt 0:08:51]} Be8 {[%emt 0:00:48]} 23. Qb6 {[%emt 0:10:04]} Bf7 {[%emt 0:04:01]} 24. Bc4 {[%emt 0:01:18]} Bf8 {[%emt 0:04:51]} 25. Qb3 {[%emt 0:01:17]} Bg7 {[%emt 0:00:41]} 26. Rad1 {[%emt 0:03:44]} Qc7 {[%emt 0:01:43]} 27. Ra1 {[%emt 0:01:14]} Qe7 {[%emt 0:00:34]} 28. Re2 {[%emt 0:03:27]} Qd7 {[%emt 0:03:32]} 29. Qb6 {[%emt 0:04:12]} Nh5 {[%emt 0:02:13]} 30. g4 {[%emt 0:02:49]} fxg4 {[%emt 0:01:00]} 31. hxg4 {[%emt 0:00:23]} Nf6 {[%emt 0:01:04]} 32. e4 {[%emt 0:02:51]} Qe7 {[%emt 0:01:12]} 33. e5 {[%emt 0:00:51]} dxe5 {[%emt 0:00:04]} 34. Rxe5 {[%emt 0:02:02]} Qf8 {[%emt 0:00:55]} 35. Qb3 {[%emt 0:01:04]} Nd7 {[%emt 0:00:34]} 36. Re3 {[%emt 0:00:35]} b5 {[%emt 0:00:15]} 37. axb6 {[%emt 0:00:20]} Rxb6 {[%emt 0:00:04]} 38. Qc2 {[%emt 0:00:13]} Bd4 {[%emt 0:00:57]} 39. Re4 {[%emt 0:00:38]} Nf6 {[%emt 0:00:39]} 40. Re2 {[%emt 0:00:29]} Re8 {[%emt 0:00:35]} 41. Rxa6 {[%emt 0:03:36]} Rxa6 {[%emt 0:00:08]} 42. Bxa6 {[%emt 0:00:02]} Nxd5 {[%emt 0:00:50]} 43. Bb5 {[%emt 0:01:46]} Ne3 {[%emt 0:00:27]} 44. Qc1 {[%emt 0:07:17]} Re7 {[%emt 0:00:32]} 45. Ne4 {[%emt 0:00:36]} Nd5 {[%emt 0:00:26]} 46. Bd6 {[%emt 0:00:10]} Qe8 {[%emt 0:00:37]} 47. Bh2 1-0

[Event "Guimaraes Open 2019"]
[Site "Guimaraes"]
[Date "2019.08.29"]
[Round "2.29"]
[White "Diaz Gomez, Mateo"]
[Black "Patino Romaris, Juan Roberto"]
[Result "0-1"]
[ECO "C02"]
[WhiteElo "1851"]
[BlackElo "2141"]
[Annotator "NA"]
[PlyCount "132"]
[EventDate "2019.08.28"]
[EventType "swiss"]
[EventCountry "POR"]
[SourceTitle "playchess.com"]
[Source "ChessBase"]
[SourceQuality "1"]
[TimeControl "5400+30"]

1. e4 {[%emt 0:00:00]} e6 {[%emt 0:00:00]} 2. d4 {[%emt 0:00:00]} d5 {[%emt 0:00:00]} 3. e5 {[%emt 0:00:00]} c5 {[%emt 0:00:16]} 4. dxc5 {[%emt 0:00:00]} Nc6 {[%emt 0:01:21]} 5. Nf3 {[%emt 0:00:00]} f6 {[%emt 0:02:53]} 6. exf6 {[%emt 0:09:38]} Nxf6 {[%emt 0:00:21]} 7. Bf4 {[%emt 0:09:44]} Bxc5 {[%emt 0:00:46]} 8. Bd3 {[%emt 0:01:03]} Qb6 {[%emt 0:06:37]} 9. O-O {[%emt 0:01:57]} Qxb2 {[%emt 0:01:26]} 10. Nbd2 {[%emt 0:00:38]} O-O {[%emt 0:00:46]} 11. Nb3 {[%emt 0:11:58]} Qa3 {[%emt 0:04:57]} 12. Bc1 {[%emt 0:04:44]} Qb4 {[%emt 0:00:26]} 13. a4 {[%emt 0:00:28]} Be7 {[%emt 0:02:01]} 14. Ba3 {[%emt 0:10:19]} Qf4 {[%emt 0:01:24]} 15. Bxe7 {[%emt 0:02:02]} Nxe7 {[%emt 0:00:05]} 16. Qe2 {[%emt 0:01:17]} Nc6 {[%emt 0:02:20]} 17. Rfe1 {[%emt 0:05:04]} Qd6 {[%emt 0:03:52]} 18. Nbd4 {[%emt 0:05:58]} Re8 {[%emt 0:04:28]} 19. Nb5 {[%emt 0:03:51]} Qb8 {[%emt 0:00:54]} 20. Ne5 {[%emt 0:04:55]} a6 {[%emt 0:02:04]} 21. Nc3 {[%emt 0:04:21]} Nxe5 {[%emt 0:05:48]} 22. Qxe5 {[%emt 0:00:07]} Qxe5 {[%emt 0:00:05]} 23. Rxe5 {[%emt 0:00:09]} Bd7 {[%emt 0:00:25]} 24. Rb1 {[%emt 0:01:35]} Rac8 {[%emt 0:00:20]} 25. Ne2 {[%emt 0:02:46]} Rc7 {[%emt 0:13:24]} 26. Nd4 {[%emt 0:03:24]} Ng4 {[%emt 0:04:36]} 27. Rg5 {[%emt 0:04:54]} e5 {[%emt 0:00:20]} 28. Nf5 {[%emt 0:00:40]} Bxf5 {[%emt 0:01:01]} 29. Bxf5 {[%emt 0:00:02]} Nh6 {[%emt 0:06:38]} 30. Bd3 {[%emt 0:00:28]} Nf7 {[%emt 0:00:56]} 31. Rh5 {[%emt 0:01:29]} g6 {[%emt 0:00:33]} 32. Rh3 {[%emt 0:00:20]} e4 {[%emt 0:02:55]} 33. Bf1 {[%emt 0:00:04]} Ne5 {[%emt 0:00:17]} 34. Rhb3 {[%emt 0:00:22]} Ree7 {[%emt 0:00:54]} 35. R1b2 {[%emt 0:03:22]} Kf7 {[%emt 0:00:43]} 36. Be2 {[%emt 0:00:25]} Ke8 {[%emt 0:03:37]} 37. Rb4 {[%emt 0:02:56]} Kd8 {[%emt 0:01:45]} 38. Rb6 {[%emt 0:01:26]} Kc8 {[%emt 0:02:25]} 39. Rd6 {[%emt 0:01:02]} Rc5 {[%emt 0:02:19]} 40. h4 {[%emt 0:01:01]} Ra5 {[%emt 0:04:04]} 41. Rb3 {[%emt 0:01:56]} Rc5 {[%emt 0:05:03]} 42. Rb2 {[%emt 0:01:55]} Nc6 {[%emt 0:00:22]} 43. h5 {[%emt 0:00:46]} Kc7 {[%emt 0:01:09]} 44. Rf6 {[%emt 0:00:02]} Nd4 {[%emt 0:01:38]} 45. Bd1 {[%emt 0:00:08]} Rc6 {[%emt 0:01:37]} 46. Rxc6+ {[%emt 0:00:31]} Kxc6 {[%emt 0:00:49]} 47. Rb4 {[%emt 0:00:30]} Kc5 {[%emt 0:00:18]} 48. c3 {[%emt 0:00:17]} Nc6 {[%emt 0:00:29]} 49. Rb1 {[%emt 0:01:04]} Kc4 {[%emt 0:00:32]} 50. hxg6 {[%emt 0:00:24]} hxg6 {[%emt 0:00:09]} 51. Bb3+ {[%emt 0:00:17]} Kc5 {[%emt 0:00:29]} 52. Rd1 {[%emt 0:00:15]} Rd7 {[%emt 0:00:23]} 53. Kf1 {[%emt 0:00:25]} Na5 {[%emt 0:01:16]} 54. Ba2 {[%emt 0:00:15]} Nc4 {[%emt 0:00:32]} 55. Rd4 {[%emt 0:00:13]} b5 {[%emt 0:02:12]} 56. axb5 {[%emt 0:00:56]} axb5 {[%emt 0:00:01]} 57. Ke2 {[%emt 0:01:25]} Ra7 {[%emt 0:00:30]} 58. Bxc4 {[%emt 0:01:04]} bxc4 {[%emt 0:00:01]} 59. Rd2 {[%emt 0:00:06]} Ra3 {[%emt 0:00:52]} 60. Rc2 {[%emt 0:00:01]} d4 {[%emt 0:01:16]} 61. cxd4+ {[%emt 0:00:47]} Kxd4 {[%emt 0:00:02]} 62. Kd2 {[%emt 0:00:46]} c3+ {[%emt 0:00:23]} 63. Ke2 {[%emt 0:00:28]} Ra1 {[%emt 0:00:05]} 64. f4 {[%emt 0:01:25]} exf3+ {[%emt 0:01:26]} 65. Kxf3 {[%emt 0:00:15]} Kd3 {[%emt 0:00:42]} 66. Re2 {[%emt 0:00:29]} Rf1+ {[%emt 0:00:17]} 0-1

[Event "Guimaraes Open 2019"]
[Site "Guimaraes"]
[Date "2019.08.29"]
[Round "2.30"]
[White "Monteiro, Paulo Alexandre Gome"]
[Black "Rodrigues, Afonso"]
[Result "0-1"]
[ECO "A06"]
[WhiteElo "1818"]
[BlackElo "2134"]
[Annotator "NA"]
[PlyCount "61"]
[EventDate "2019.08.28"]
[EventType "swiss"]
[EventCountry "POR"]
[SourceTitle "playchess.com"]
[Source "ChessBase"]
[SourceQuality "1"]
[TimeControl "5400+30"]

1. Nf3 {[%emt 0:00:00]} d5 {[%emt 0:00:00]} 2. g3 {[%emt 0:00:44]} Nf6 {[%emt 0:00:11]} 3. Bg2 {[%emt 0:00:10]} c6 {[%emt 0:01:49]} 4. O-O {[%emt 0:00:39]} Bf5 {[%emt 0:00:18]} 5. d3 {[%emt 0:00:26]} h6 {[%emt 0:02:05]} 6. b3 {[%emt 0:02:14]} e6 {[%emt 0:00:29]} 7. Bb2 {[%emt 0:00:49]} Be7 {[%emt 0:00:18]} 8. Nbd2 {[%emt 0:00:15]} O-O {[%emt 0:00:26]} 9. Re1 {[%emt 0:00:30]} Bh7 {[%emt 0:02:22]} 10. e4 {[%emt 0:05:35]} a5 {[%emt 0:03:12]} 11. a4 {[%emt 0:13:19]} Na6 {[%emt 0:08:41]} 12. e5 {[%emt 0:08:47]} Nd7 {[%emt 0:03:16]} 13. Nd4 {[%emt 0:02:33]} Qb6 {[%emt 0:14:16]} 14. Bh3 {[%emt 0:07:12]} Nc7 {[%emt 0:09:09]} 15. N2f3 {[%emt 0:12:44]} c5 {[%emt 0:13:10]} 16. Ne2 {[%emt 0:00:45]} Rad8 {[%emt 0:02:25]} 17. Ba3 {[%emt 0:07:34]} f6 {[%emt 0:06:55]} 18. Nf4 {[%emt 0:09:00]} fxe5 {[%emt 0:04:57]} 19. Nxe5 {[%emt 0:01:56]} Nxe5 {[%emt 0:01:49]} 20. Rxe5 {[%emt 0:00:09]} Bf6 {[%emt 0:06:21]} 21. Rxe6 {[%emt 0:01:48]} Nxe6 {[%emt 0:00:31]} 22. Nxe6 {[%emt 0:00:24]} Rc8 {[%emt 0:11:31]} 23. d4 {[%emt 0:05:26]} Bxd4 {[%emt 0:03:06]} 24. Nxd4 {[%emt 0:00:14]} cxd4 {[%emt 0:00:02]} 25. Bxc8 {[%emt 0:01:07]} Rxc8 {[%emt 0:00:03]} 26. Qh5 {[%emt 0:02:01]} Qe6 {[%emt 0:02:11]} 27. Qh4 {[%emt 0:04:13]} Be4 {[%emt 0:01:04]} 28. Bb2 {[%emt 0:08:33]} Qf5 {[%emt 0:00:29]} 29. f4 {[%emt 0:00:51]} Rc4 {[%emt 0:01:08]} 30. Bxd4 {[%emt 0:01:09]} Rxc2 {[%emt 0:00:00] Kg2 Rxg2} 31. Qe7 {[%emt 0:01:46]} 0-1

[Event "Guimaraes Open 2019"]
[Site "Guimaraes"]
[Date "2019.08.29"]
[Round "2.31"]
[White "Bukhteeva, Viktoria"]
[Black "Andrade, Ricardo Sarmento"]
[Result "1-0"]
[ECO "A45"]
[WhiteElo "2128"]
[BlackElo "1756"]
[Annotator "NA"]
[PlyCount "47"]
[EventDate "2019.08.28"]
[EventType "swiss"]
[EventCountry "POR"]
[SourceTitle "playchess.com"]
[Source "ChessBase"]
[SourceQuality "1"]
[TimeControl "5400+30"]

1. d4 {[%emt 0:00:00]} Nf6 {[%emt 0:00:00]} 2. Bf4 {[%emt 0:00:00]} e6 {[%emt 0:00:00]} 3. e3 {[%emt 0:00:00]} b6 {[%emt 0:00:00]} 4. Nf3 {[%emt 0:00:24]} Nh5 {[%emt 0:00:28]} 5. Bg3 {[%emt 0:00:21]} Nxg3 {[%emt 0:00:11]} 6. hxg3 {[%emt 0:00:06]} Bb7 {[%emt 0:00:32]} 7. Bd3 {[%emt 0:00:40]} g6 {[%emt 0:00:13]} 8. Nbd2 {[%emt 0:01:06]} Bg7 {[%emt 0:00:09]} 9. Qe2 {[%emt 0:00:21]} d6 {[%emt 0:00:24]} 10. c3 {[%emt 0:01:22]} Nd7 {[%emt 0:00:09]} 11. O-O-O {[%emt 0:02:46]} c5 {[%emt 0:01:53]} 12. Bc2 {[%emt 0:13:52]} Qc7 {[%emt 0:01:40]} 13. Kb1 {[%emt 0:05:28]} O-O {[%emt 0:02:57]} 14. Ne4 {[%emt 0:09:59]} cxd4 {[%emt 0:00:51]} 15. exd4 {[%emt 0:00:41]} a5 {[%emt 0:01:06]} 16. Bd3 {[%emt 0:08:45]} a4 {[%emt 0:01:31]} 17. a3 {[%emt 0:01:22]} b5 {[%emt 0:02:09]} 18. Ka1 {[%emt 0:03:55]} Rfb8 {[%emt 0:11:31]} 19. Qe3 {[%emt 0:02:29]} Nb6 {[%emt 0:01:03]} 20. Qf4 {[%emt 0:06:53]} Nd5 {[%emt 0:02:48]} 21. Qxd6 {[%emt 0:05:12]} Qa5 {[%emt 0:00:05]} 22. Qd7 {[%emt 0:00:24]} Bc8 {[%emt 0:01:57]} 23. Qe8+ {[%emt 0:02:21]} Bf8 {[%emt 0:00:02]} 24. Rxh7 {[%emt 0:00:37]} 1-0

[Event "Guimaraes Open 2019"]
[Site "Guimaraes"]
[Date "2019.08.29"]
[Round "2.32"]
[White "Giraldo Guerrero, Laureano"]
[Black "Pintor, Simao Maciel Abranch"]
[Result "0-1"]
[ECO "B27"]
[WhiteElo "1763"]
[BlackElo "2076"]
[Annotator "NA"]
[PlyCount "60"]
[EventDate "2019.08.28"]
[EventType "swiss"]
[EventCountry "POR"]
[SourceTitle "playchess.com"]
[Source "ChessBase"]
[SourceQuality "1"]
[TimeControl "5400+30"]

1. e4 c5 {[%emt 0:07:33]} 2. Nf3 {[%emt 0:01:05]} g6 {[%emt 0:00:06]} 3. b3 {[%emt 0:07:20]} Bg7 {[%emt 0:00:09]} 4. Nc3 {[%emt 0:00:06]} Nf6 {[%emt 0:01:57]} 5. Rb1 {[%emt 0:06:25]} Nc6 {[%emt 0:01:50]} 6. Bb2 {[%emt 0:06:19]} O-O {[%emt 0:00:21]} 7. Be2 {[%emt 0:07:53]} d5 {[%emt 0:00:44]} 8. Nxd5 {[%emt 0:04:40]} Nxe4 {[%emt 0:01:55]} 9. Bxg7 {[%emt 0:00:59]} Kxg7 {[%emt 0:00:07]} 10. Nc3 {[%emt 0:02:20]} Nxc3 {[%emt 0:01:12]} 11. dxc3 {[%emt 0:00:04]} Bf5 {[%emt 0:00:27]} 12. Qxd8 {[%emt 0:12:28]} Rfxd8 {[%emt 0:00:44]} 13. Rc1 {[%emt 0:06:26]} Rac8 {[%emt 0:05:25]} 14. O-O {[%emt 0:04:50]} a6 {[%emt 0:02:47]} 15. h3 {[%emt 0:07:31]} e5 {[%emt 0:00:39]} 16. g4 {[%emt 0:04:10]} Be6 {[%emt 0:00:40]} 17. Ng5 {[%emt 0:11:05]} Bd5 {[%emt 0:00:04]} 18. f3 {[%emt 0:04:17]} f6 {[%emt 0:02:47]} 19. Ne4 {[%emt 0:00:23]} Ne7 {[%emt 0:03:22]} 20. Rcd1 {[%emt 0:05:16]} g5 {[%emt 0:04:39]} 21. Ng3 {[%emt 0:02:47]} Be6 {[%emt 0:03:53]} 22. Rxd8 {[%emt 0:01:58]} Rxd8 {[%emt 0:00:04]} 23. Ne4 {[%emt 0:00:50]} b6 {[%emt 0:02:00]} 24. c4 {[%emt 0:00:42]} Ng6 {[%emt 0:03:21]} 25. Bd3 {[%emt 0:00:52]} Nf4 {[%emt 0:00:18]} 26. Nf2 {[%emt 0:00:28]} h5 {[%emt 0:01:34]} 27. gxh5 {[%emt 0:00:55]} Bxh3 {[%emt 0:02:33]} 28. Rd1 {[%emt 0:00:54]} Be6 {[%emt 0:00:57]} 29. Ng4 {[%emt 0:00:51]} Bxg4 {[%emt 0:01:09]} 30. fxg4 {[%emt 0:00:05]} e4 {[%emt 0:00:03]} 0-1